fUST/lending_fUST_20250701
["ID","MTS","AMOUNT","RATE_DAILY","PERIOD"]
[368761840,1751351126226,235.0,0.00021899,120]
[368761841,1751351126608,150.5,0.00021899,120]
[368761842,1751351126670,235.0,0.00021889,120]
[368761843,1751351127048,210.64,0.00021889,120]
[368761844,1751351127139,235.0,0.00023487,120]
[368761845,1751351127522,235.0,0.00023477,120]
[368761846,1751351127954,235.0,0.00023467,120]
[368761847,1751351159035,170.341678,0.00017183,2]
[368761848,1751351159226,170.341678,0.00017183,18]
[368761849,1751351159776,170.341678,0.00017183,35]
[368761850,1751351159992,170.341678,0.00017183,52]
[368761851,1751351160205,170.341678,0.00017183,69]
[368761852,1751351160402,170.341678,0.00017183,86]
[368761853,1751351160598,170.341678,0.00017183,103]
[368761854,1751351160792,170.341678,0.00017183,119]
[368761855,1751351201130,-300.0,0.00018043,2]
[368761856,1751351201152,-21.22198446,0.00018043,2]
[368761857,1751351202145,153.0,0.00024,120]
[368761858,1751351247192,150.5,0.0002191,120]
[368761859,1751351247750,150.5,0.000219,120]
[368761860,1751351247906,-159.69101139,0.00018043,2]
[368761861,1751351248262,158.19,0.0002189,120]
[368761862,1751351251699,3003.04446183,0.00025233,120]
[368761863,1751351253092,-1019.08700415,0.00018043,2]
[368761864,1751351253115,-1200.0,0.00018043,2]
[368761865,1751351253138,-266.8107205,0.00018043,2]
[368761866,1751351263817,407.44902098,0.00025233,120]
[368761867,1751351265533,275.68825952,0.00025233,120]
[368761868,1751351269358,604.99994659,0.00025233,120]
[368761869,1751351270070,839.37476926,0.000246,120]
[368761870,1751351272641,178.27686117,0.00017945,2]
[368761874,1751351274639,-255.68675771,0.00018036,3]
[368761875,1751351279793,-197.0,0.00018036,3]
[368761876,1751351282353,200.0,0.00025233,120]
[368761877,1751351282934,5219.53494569,0.00025233,60]
[368761878,1751351288364,157.499442,0.00017948,2]
[368761879,1751351293273,204.80223613,0.00025233,120]
[368761880,1751351293828,965.73278667,0.00025233,120]
[368761881,1751351296237,1043.23823161,0.00025233,120]
[368761882,1751351299732,188.0,0.0002,120]
[368761883,1751351302180,965.05830074,0.00025233,120]
[368761884,1751351302579,917.05077098,0.00025233,120]
[368761885,1751351305746,563.26917965,0.00025233,120]
[368761886,1751351310512,191.7437834,0.00025233,120]
[368761888,1751351310916,845.86624876,0.00025233,120]
[368761889,1751351312043,689.18464326,0.00025233,120]
[368761890,1751351313174,14959.71161887,0.00025233,120]
[368761891,1751351313380,240.82074905,0.00025233,120]
[368761892,1751351313444,1864.65941548,0.00025233,60]
[368761893,1751351314325,333.16707667,0.00025233,120]
[368761894,1751351314997,242.45050419,0.00025233,120]
[368761895,1751351315336,463.80416867,0.0002,120]
[368761896,1751351315529,2557.76463698,0.00025233,120]
[368761897,1751351316432,2000.0,0.00025233,120]
[368761898,1751351317145,1102.01317112,0.00025233,120]
[368761899,1751351317279,1700.64114184,0.00024,120]
[368761900,1751351317692,409.99426936,0.00024108,120]
[368761901,1751351319156,1799.72333688,0.00024,120]
[368761902,1751351319333,1301.70066296,0.00025233,60]
[368761903,1751351320249,1134.80136135,0.00025233,120]
[368761904,1751351320694,1008.78513934,0.00025233,120]
[368761905,1751351320985,1434.97034115,0.00025233,120]
[368761906,1751351321071,464.95712086,0.00025233,120]
[368761907,1751351321163,1615.80676955,0.00025233,120]
[368761908,1751351321301,3350.56847813,0.00025233,120]
[368761909,1751351321519,400.88149583,0.00025233,60]
[368761910,1751351321583,1565.27119789,0.00025233,120]
[368761911,1751351321962,410.38742022,0.00025233,120]
[368761912,1751351322362,427.10291755,0.00025233,120]
[368761913,1751351322421,1365.58091484,0.00025233,120]
[368761914,1751351322475,216.18300607,0.00025233,120]
[368761915,1751351322532,5390.66169016,0.00025233,120]
[368761916,1751351323167,1981.81523542,0.00025233,120]
[368761917,1751351323436,4235.25152173,0.0002,120]
[368761918,1751351323737,317.37508635,0.00025233,120]
[368761919,1751351323828,6181.13985629,0.00025233,120]
[368761920,1751351324008,204.0148189,0.00025233,120]
[368761921,1751351324487,411.60017765,0.00024,120]
[368761922,1751351324991,972.64333186,0.00018,120]
[368761923,1751351325360,1069.65367822,0.00025233,120]
[368761924,1751351325461,3222.11970993,0.00025233,120]
[368761925,1751351325543,218.8995663,0.0001536,120]
[368761926,1751351326424,546.22182591,0.00025233,120]
[368761927,1751351326480,534.83792836,0.00025233,120]
[368761928,1751351326896,1013.10833396,0.0002,120]
[368761929,1751351327840,219.66492167,0.00025233,120]
[368761930,1751351327956,497.38634554,0.00025233,60]
[368761931,1751351328462,1054.42651158,0.00025233,120]
[368761932,1751351328953,192.20955688,0.00025233,120]
[368761933,1751351329014,502.20144652,0.0002465,120]
[368761934,1751351329081,1870.0,0.00025233,120]
[368761935,1751351329146,250.20295414,0.00024,120]
[368761944,1751351363010,158.97564442,0.00017944,2]
[368761945,1751351365773,152.0,0.0002191,120]
[368761946,1751351366201,152.0,0.000219,120]
[368761947,1751351366627,152.0,0.0002189,120]
[368761948,1751351367070,152.0,0.0002347,120]
[368761949,1751351367498,152.0,0.0002346,120]
[368761950,1751351367882,178.27686116,0.00017944,2]
[368761951,1751351367944,152.0,0.0002345,120]
[368761952,1751351394236,4614.5170587,0.00017044,2]
[368761953,1751351403176,318.43049459,0.00024658,120]
[368761954,1751351403233,1058.31249131,0.00025235,120]
[368761955,1751351403289,756.02,0.00024658,120]
[368761956,1751351403344,1159.31884602,0.00025235,120]
[368761984,1751351432634,-206.27324229,0.00018036,3]
[368761985,1751351432644,-329.48,0.00018036,3]
[368761986,1751351432655,-164.74,0.00018036,3]
[368761987,1751351432667,-39.28119285,0.00018036,3]
[368761988,1751351432679,-454.94880715,0.00018036,3]
[368761989,1751351432689,-673.0,0.00018036,2]
[368761990,1751351432698,-151.37019777,0.00018037,2]
[368761991,1751351432708,-160.0,0.00018043,2]
[368761992,1751351432718,-460.0,0.00018043,2]
[368761993,1751351432728,-460.0,0.00018043,2]
[368761994,1751351432737,-430.0,0.00018043,2]
[368761995,1751351432746,-460.0,0.00018043,2]
[368761996,1751351432756,-460.0,0.00018043,2]
[368761997,1751351432766,-430.0,0.00018043,2]
[368761998,1751351432776,-460.0,0.00018043,2]
[368761999,1751351432786,-460.0,0.00018043,2]
[368762001,1751351432795,-460.0,0.00018043,2]
[368762003,1751351432805,-460.0,0.00018043,2]
[368762004,1751351432814,-442.47828112,0.00018043,2]
[368762005,1751351432824,-493.97,0.00018043,2]
[368762006,1751351432834,-460.0,0.00018043,2]
[368762007,1751351432844,-460.0,0.00018043,2]
[368762008,1751351432853,-460.0,0.00018043,2]
[368762009,1751351432862,-255.62784487,0.00018043,2]
[368762010,1751351432871,-460.0,0.00018043,2]
[368762011,1751351432880,-460.0,0.00018043,2]
[368762012,1751351432889,-9121.69832024,0.00018043,2]
[368762015,1751351438689,-460.0,0.00018043,2]
[368762016,1751351438699,-2415.50843641,0.00018043,2]
[368762017,1751351438709,-460.0,0.00018044,2]
[368762018,1751351438719,-460.0,0.00018044,2]
[368762019,1751351438728,-428.94001828,0.00018044,2]
[368762020,1751351438738,-463.8293393,0.00018044,2]
[368762021,1751351438747,-460.0,0.00018044,2]
[368762022,1751351438757,-526.31909194,0.00018044,2]
[368762023,1751351438766,-161.75232007,0.00018044,2]
[368762024,1751351438775,-500.0,0.00018044,2]
[368762025,1751351438785,-500.0,0.00018044,2]
[368762026,1751351438795,-500.0,0.00018044,2]
[368762027,1751351438804,-500.0,0.00018044,2]
[368762028,1751351438814,-500.0,0.00018044,2]
[368762029,1751351438827,-500.0,0.00018044,2]
[368762030,1751351438837,-500.0,0.00018044,2]
[368762031,1751351438846,-500.0,0.00018044,2]
[368762032,1751351438855,-570.90861581,0.00018044,2]
[368762033,1751351438864,-500.0,0.00018044,2]
[368762034,1751351438874,-500.0,0.00018044,2]
[368762035,1751351438883,-500.0,0.00018044,2]
[368762036,1751351438893,-460.0,0.00018044,2]
[368762037,1751351438903,-460.0,0.00018044,2]
[368762038,1751351438912,-460.0,0.00018044,2]
[368762039,1751351438922,-460.0,0.00018044,2]
[368762041,1751351438931,-1344.77,0.00018044,2]
[368762042,1751351438942,-460.0,0.00018044,2]
[368762043,1751351438952,-986.27,0.00018044,2]
[368762044,1751351438961,-460.0,0.00018044,2]
[368762045,1751351438971,-460.0,0.00018044,2]
[368762046,1751351438982,-460.0,0.00018044,2]
[368762047,1751351438991,-460.0,0.00018044,2]
[368762048,1751351439002,-460.0,0.00018044,2]
[368762049,1751351439012,-460.0,0.00018044,2]
[368762050,1751351439022,-460.0,0.00018044,2]
[368762051,1751351439032,-660.44,0.00018044,2]
[368762052,1751351439046,-460.0,0.00018044,2]
[368762053,1751351439056,-827.49,0.00018044,2]
[368762054,1751351439065,-783.63,0.00018044,2]
[368762055,1751351439076,-460.0,0.00018044,2]
[368762056,1751351439099,-460.0,0.00018044,2]
[368762057,1751351439111,-460.0,0.00018044,2]
[368762058,1751351439122,-538.36,0.00018044,2]
[368762059,1751351439134,-460.0,0.00018044,2]
[368762060,1751351439144,-460.0,0.00018044,2]
[368762061,1751351439154,-460.0,0.00018044,2]
[368762062,1751351439165,-460.0,0.00018044,2]
[368762063,1751351439175,-460.0,0.00018044,2]
[368762064,1751351439182,-460.0,0.00018044,2]
[368762065,1751351439194,-460.0,0.00018044,2]
[368762066,1751351439201,-720.98,0.00018044,2]
[368762067,1751351439209,-460.0,0.00018044,2]
[368762068,1751351439217,-460.0,0.00018044,2]
[368762069,1751351439225,-460.0,0.00018044,2]
[368762070,1751351439232,-460.0,0.00018044,2]
[368762071,1751351439243,-460.0,0.00018044,2]
[368762072,1751351439253,-460.0,0.00018044,2]
[368762073,1751351439263,-460.0,0.00018044,2]
[368762074,1751351439272,-460.0,0.00018044,2]
[368762075,1751351439282,-460.0,0.00018044,2]
[368762076,1751351439292,-460.0,0.00018044,2]
[368762077,1751351439302,-460.0,0.00018044,2]
[368762078,1751351439311,-500.0,0.00018044,2]
[368762079,1751351439321,-460.0,0.00018045,2]
[368762080,1751351439331,-460.0,0.00018045,2]
[368762081,1751351439341,-460.0,0.00018045,2]
[368762082,1751351439351,-460.0,0.00018045,2]
[368762083,1751351439361,-473.9568773,0.00018045,2]
[368762084,1751351439370,-460.0,0.00018045,2]
[368762085,1751351439380,-460.0,0.00018045,2]
[368762086,1751351439390,-460.0,0.00018045,2]
[368762087,1751351439399,-460.0,0.00018045,2]
[368762088,1751351439409,-460.0,0.00018045,2]
[368762089,1751351439418,-460.0,0.00018045,2]
[368762090,1751351439428,-317.54796426,0.00018045,2]
[368762091,1751351439437,-460.0,0.00018045,2]
[368762092,1751351439448,-446.04362974,0.00018045,2]
[368762093,1751351439458,-460.0,0.00018045,2]
[368762094,1751351439467,-460.0,0.00018045,2]
[368762095,1751351439477,-460.0,0.00018045,2]
[368762096,1751351439487,-463.29241626,0.00018045,2]
[368762097,1751351439497,-460.0,0.00018045,2]
[368762098,1751351439507,-460.78398717,0.00018045,2]
[368762099,1751351439517,-591.36,0.00018045,2]
[368762100,1751351439526,-460.0,0.00018045,2]
[368762101,1751351439536,-429.10893062,0.00018045,2]
[368762102,1751351439545,-460.0,0.00018045,2]
[368762103,1751351439555,-460.0,0.00018045,2]
[368762104,1751351439565,-460.0,0.00018045,2]
[368762105,1751351439574,-460.0,0.00018045,2]
[368762106,1751351439584,-460.0,0.00018045,2]
[368762107,1751351439595,-460.0,0.00018045,2]
[368762108,1751351439605,-273.48223068,0.00018045,2]
[368762109,1751351439614,-460.0,0.00018045,2]
[368762110,1751351439624,-460.0,0.00018045,2]
[368762111,1751351439634,-460.0,0.00018045,2]
[368762112,1751351439644,-508.80953898,0.00018045,2]
[368762113,1751351439653,-460.0,0.00018045,2]
[368762114,1751351439663,-460.0,0.00018045,2]
[368762115,1751351439673,-460.0,0.00018045,2]
[368762116,1751351439683,-460.0,0.00018045,2]
[368762117,1751351439694,-460.0,0.00018045,2]
[368762118,1751351439709,-460.0,0.00018045,2]
[368762119,1751351439719,-460.0,0.00018045,2]
[368762120,1751351439729,-460.0,0.00018045,2]
[368762121,1751351439739,-460.0,0.00018045,2]
[368762122,1751351439750,-460.0,0.00018045,2]
[368762123,1751351439760,-460.0,0.00018045,2]
[368762124,1751351439770,-460.0,0.00018045,2]
[368762125,1751351439781,-460.0,0.00018045,2]
[368762126,1751351439792,-460.0,0.00018045,2]
[368762127,1751351439801,-460.6588878,0.00018045,2]
[368762128,1751351439811,-518.3199444,0.00018045,2]
[368762129,1751351439821,-460.0,0.00018045,2]
[368762130,1751351439831,-460.98570393,0.00018045,2]
[368762131,1751351439841,-461.50584905,0.00018045,2]
[368762132,1751351439851,-460.0,0.00018045,2]
[368762133,1751351439861,-461.32884626,0.00018045,2]
[368762134,1751351439871,-460.0,0.00018045,2]
[368762135,1751351439881,-500.0,0.00018045,2]
[368762136,1751351439891,-461.64086314,0.00018045,2]
[368762137,1751351439901,-460.0,0.00018045,2]
[368762138,1751351440050,-460.0,0.00018045,2]
[368762139,1751351440059,-460.0,0.00018045,2]
[368762140,1751351440069,-460.0,0.00018045,2]
[368762141,1751351440079,-460.0,0.00018045,2]
[368762142,1751351440088,-460.0,0.00018045,2]
[368762143,1751351440097,-460.0,0.00018045,2]
[368762144,1751351440107,-460.0,0.00018045,2]
[368762145,1751351440118,-460.0,0.00018045,2]
[368762146,1751351440128,-460.0,0.00018045,2]
[368762147,1751351440137,-460.0,0.00018045,2]
[368762148,1751351440147,-460.0,0.00018045,2]
[368762149,1751351440157,-460.0,0.00018045,2]
[368762150,1751351440166,-460.0,0.00018045,2]
[368762151,1751351440176,-460.0,0.00018045,2]
[368762152,1751351440185,-460.0,0.00018045,2]
[368762153,1751351440196,-460.0,0.00018045,2]
[368762154,1751351440206,-460.0,0.00018045,2]
[368762155,1751351440215,-460.0,0.00018045,2]
[368762156,1751351440224,-460.0,0.00018045,2]
[368762157,1751351440235,-460.0,0.00018045,2]
[368762158,1751351440244,-460.0,0.00018045,2]
[368762159,1751351440254,-460.0,0.00018045,2]
[368762160,1751351440263,-460.0,0.00018045,2]
[368762161,1751351440273,-460.0,0.00018045,2]
[368762162,1751351440283,-460.0,0.00018045,2]
[368762163,1751351440296,-460.0,0.00018045,2]
[368762164,1751351440306,-460.0,0.00018045,2]
[368762165,1751351440315,-460.0,0.00018045,2]
[368762166,1751351440325,-460.0,0.00018045,2]
[368762167,1751351440334,-460.0,0.00018045,2]
[368762168,1751351440344,-460.0,0.00018045,2]
[368762169,1751351440354,-460.0,0.00018045,2]
[368762170,1751351440364,-460.0,0.00018045,2]
[368762171,1751351440373,-460.0,0.00018045,2]
[368762172,1751351440383,-460.0,0.00018045,2]
[368762173,1751351440392,-461.25801184,0.00018045,2]
[368762174,1751351440402,-460.0,0.00018045,2]
[368762175,1751351440411,-460.0,0.00018045,2]
[368762176,1751351440420,-852.87,0.00018045,2]
[368762177,1751351440430,-460.0,0.00018045,2]
[368762178,1751351440442,-460.0,0.00018045,2]
[368762179,1751351440451,-460.0,0.00018045,2]
[368762180,1751351440462,-460.0,0.00018045,2]
[368762181,1751351440473,-852.18979743,0.00018045,2]
[368762182,1751351440488,-448.42020257,0.00018045,2]
[368762183,1751351440498,-305.58394003,0.00018045,2]
[368762184,1751351440511,-500.0,0.00018045,2]
[368762186,1751351440528,-495.02605997,0.00018045,2]
[368762188,1751351440539,-1300.61,0.00018045,2]
[368762190,1751351440548,-460.0,0.00018045,2]
[368762192,1751351440558,-460.0,0.00018045,2]
[368762194,1751351440568,-460.0,0.00018045,2]
[368762195,1751351440578,-460.0,0.00018045,2]
[368762198,1751351440588,-460.0,0.00018045,2]
[368762199,1751351440599,-460.0,0.00018045,2]
[368762200,1751351440608,-460.0,0.00018045,2]
[368762201,1751351440618,-460.0,0.00018045,2]
[368762202,1751351440629,-460.0,0.00018045,2]
[368762203,1751351440639,-460.0,0.00018045,2]
[368762204,1751351440649,-462.03335643,0.00018045,2]
[368762205,1751351440658,-460.0,0.00018045,2]
[368762206,1751351440668,-460.0,0.00018045,2]
[368762207,1751351440677,-460.0,0.00018045,2]
[368762208,1751351440688,-460.0,0.00018045,2]
[368762209,1751351440698,-460.0,0.00018045,2]
[368762210,1751351440707,-460.0,0.00018045,2]
[368762211,1751351440717,-460.0,0.00018045,2]
[368762212,1751351440727,-460.0,0.00018045,2]
[368762213,1751351440737,-460.0,0.00018045,2]
[368762214,1751351440746,-460.0,0.00018045,2]
[368762215,1751351440756,-460.0,0.00018045,2]
[368762216,1751351440766,-460.0,0.00018045,2]
[368762217,1751351440776,-460.0,0.00018045,2]
[368762218,1751351440786,-460.0,0.00018045,2]
[368762219,1751351440796,-460.0,0.00018045,2]
[368762220,1751351440806,-472.79994226,0.00018045,2]
[368762221,1751351440815,-460.0,0.00018045,2]
[368762222,1751351440826,-460.0,0.00018045,2]
[368762224,1751351440836,-460.0,0.00018045,2]
[368762226,1751351440845,-460.0,0.00018045,2]
[368762227,1751351440855,-460.0,0.00018045,2]
[368762228,1751351440865,-460.0,0.00018045,2]
[368762229,1751351440874,-460.0,0.00018045,2]
[368762230,1751351440883,-460.0,0.00018045,2]
[368762231,1751351440893,-460.0,0.00018045,2]
[368762232,1751351440903,-460.0,0.00018045,2]
[368762233,1751351440913,-500.0,0.00018045,2]
[368762234,1751351440922,-460.0,0.00018045,2]
[368762235,1751351440932,-1607.04,0.00018045,2]
[368762236,1751351440942,-545.78860857,0.00018045,2]
[368762237,1751351440951,-460.0,0.00018045,2]
[368762238,1751351440961,-460.0,0.00018045,2]
[368762239,1751351440970,-460.0,0.00018045,2]
[368762240,1751351440980,-460.0,0.00018045,2]
[368762241,1751351440989,-460.0,0.00018045,2]
[368762242,1751351440999,-460.0,0.00018045,2]
[368762243,1751351441009,-460.0,0.00018045,2]
[368762244,1751351441018,-460.0,0.00018045,2]
[368762245,1751351441028,-460.0,0.00018045,2]
[368762246,1751351441039,-460.0,0.00018045,2]
[368762247,1751351441049,-460.0,0.00018045,2]
[368762248,1751351441059,-460.0,0.00018045,2]
[368762249,1751351441068,-460.0,0.00018045,2]
[368762250,1751351441079,-509.32,0.00018045,2]
[368762252,1751351441088,-460.0,0.00018045,2]
[368762253,1751351441097,-460.0,0.00018045,2]
[368762255,1751351441108,-433.79291214,0.00018045,2]
[368762256,1751351441117,-460.0,0.00018045,2]
[368762257,1751351441127,-460.0,0.00018045,2]
[368762258,1751351441137,-460.0,0.00018045,2]
[368762259,1751351441146,-460.0,0.00018045,2]
[368762260,1751351441155,-460.0,0.00018045,2]
[368762261,1751351441165,-460.0,0.00018045,2]
[368762262,1751351441174,-460.0,0.00018045,2]
[368762263,1751351441184,-460.0,0.00018045,2]
[368762264,1751351441195,-460.0,0.00018045,2]
[368762265,1751351441206,-460.0,0.00018045,2]
[368762266,1751351441215,-460.0,0.00018045,2]
[368762267,1751351441224,-460.0,0.00018045,2]
[368762268,1751351441234,-460.0,0.00018045,2]
[368762269,1751351441243,-460.0,0.00018045,2]
[368762270,1751351441252,-460.0,0.00018045,2]
[368762271,1751351441261,-460.0,0.00018045,2]
[368762272,1751351441271,-460.0,0.00018045,2]
[368762273,1751351441280,-460.0,0.00018045,2]
[368762274,1751351441289,-1151.81,0.00018045,2]
[368762275,1751351441298,-460.0,0.00018045,2]
[368762276,1751351441307,-460.0,0.00018045,2]
[368762277,1751351441317,-460.0,0.00018046,2]
[368762278,1751351441326,-460.0,0.00018046,2]
[368762279,1751351441335,-460.0,0.00018046,2]
[368762280,1751351441344,-460.0,0.00018046,2]
[368762281,1751351441354,-460.0,0.00018046,2]
[368762282,1751351441363,-460.0,0.00018046,2]
[368762283,1751351441372,-460.0,0.00018046,2]
[368762284,1751351441381,-460.0,0.00018046,2]
[368762285,1751351441391,-460.0,0.00018046,2]
[368762286,1751351441400,-460.0,0.00018046,2]
[368762287,1751351441409,-460.0,0.00018046,2]
[368762288,1751351441418,-460.0,0.00018046,2]
[368762289,1751351441427,-460.0,0.00018046,2]
[368762290,1751351441436,-460.0,0.00018046,2]
[368762291,1751351441447,-460.0,0.00018046,2]
[368762292,1751351441456,-460.0,0.00018046,2]
[368762293,1751351441465,-460.0,0.00018046,2]
[368762294,1751351441474,-463.43368061,0.00018046,2]
[368762295,1751351441484,-460.0,0.00018046,2]
[368762296,1751351441494,-460.0,0.00018046,2]
[368762297,1751351441503,-460.0,0.00018046,2]
[368762298,1751351441512,-433.72323076,0.00018046,2]
[368762299,1751351441522,-460.0,0.00018046,2]
[368762300,1751351441531,-460.0,0.00018046,2]
[368762301,1751351441540,-460.0,0.00018046,2]
[368762302,1751351441549,-500.0,0.00018046,2]
[368762303,1751351441559,-460.0,0.00018046,2]
[368762304,1751351441568,-460.0,0.00018046,2]
[368762305,1751351441578,-460.0,0.00018046,2]
[368762306,1751351441588,-460.0,0.00018046,2]
[368762307,1751351441598,-460.0,0.00018046,2]
[368762308,1751351441607,-444.84,0.00018046,2]
[368762309,1751351441616,-460.0,0.00018046,2]
[368762310,1751351441626,-718.25,0.00018046,2]
[368762311,1751351441636,-460.0,0.00018046,2]
[368762312,1751351441645,-460.0,0.00018046,2]
[368762313,1751351441655,-460.0,0.00018046,2]
[368762314,1751351441664,-460.0,0.00018046,2]
[368762315,1751351441674,-460.0,0.00018046,2]
[368762316,1751351441683,-460.0,0.00018046,2]
[368762317,1751351441693,-460.0,0.00018046,2]
[368762318,1751351441702,-460.0,0.00018046,2]
[368762319,1751351441711,-460.0,0.00018046,2]
[368762320,1751351441721,-460.0,0.00018046,2]
[368762321,1751351441730,-460.0,0.00018046,2]
[368762322,1751351441739,-460.0,0.00018046,2]
[368762323,1751351441748,-460.0,0.00018046,2]
[368762324,1751351441758,-732.75,0.00018046,2]
[368762325,1751351441767,-460.0,0.00018046,2]
[368762326,1751351441777,-460.0,0.00018046,2]
[368762327,1751351441787,-460.0,0.00018046,2]
[368762328,1751351441796,-460.0,0.00018046,2]
[368762329,1751351441806,-460.0,0.00018046,2]
[368762330,1751351441816,-460.0,0.00018046,2]
[368762331,1751351441825,-460.0,0.00018046,2]
[368762332,1751351441835,-500.0,0.00018046,2]
[368762333,1751351441844,-500.0,0.00018046,2]
[368762334,1751351441854,-460.0,0.00018046,2]
[368762335,1751351441863,-460.0,0.00018046,2]
[368762336,1751351441874,-620.61,0.00018046,2]
[368762337,1751351441883,-460.0,0.00018046,2]
[368762338,1751351441892,-460.0,0.00018046,2]
[368762339,1751351441902,-460.0,0.00018046,2]
[368762340,1751351441911,-1219.14,0.00018046,2]
[368762341,1751351441920,-460.0,0.00018046,2]
[368762342,1751351441929,-460.0,0.00018046,2]
[368762343,1751351441939,-460.0,0.00018046,2]
[368762344,1751351441949,-535.2262615,0.00018046,2]
[368762345,1751351441958,-460.0,0.00018046,2]
[368762346,1751351441967,-460.0,0.00018046,2]
[368762347,1751351441977,-585.76,0.00018046,2]
[368762348,1751351441986,-460.0,0.00018046,2]
[368762349,1751351441995,-500.0,0.00018046,2]
[368762350,1751351442005,-500.0,0.00018046,2]
[368762351,1751351442014,-278.60457065,0.00018046,2]
[368762352,1751351442023,-500.0,0.00018046,2]
[368762353,1751351442033,-496.42447555,0.00018046,2]
[368762354,1751351442046,-500.0,0.00018046,2]
[368762355,1751351442056,-500.0,0.00018046,2]
[368762356,1751351442065,-500.0,0.00018046,2]
[368762357,1751351442075,-488.04680863,0.00018046,2]
[368762358,1751351442085,-500.0,0.00018046,2]
[368762359,1751351442100,-500.0,0.00018046,2]
[368762360,1751351442115,-500.0,0.00018046,2]
[368762361,1751351442124,-500.0,0.00018046,2]
[368762362,1751351442133,-500.0,0.00018046,2]
[368762363,1751351442143,-500.0,0.00018046,2]
[368762364,1751351442152,-500.0,0.00018046,2]
[368762365,1751351442162,-500.0,0.00018047,2]
[368762366,1751351442171,-500.0,0.00018047,2]
[368762367,1751351442182,-460.0,0.00018047,2]
[368762368,1751351442192,-460.0,0.00018047,2]
[368762369,1751351442202,-1300.61,0.00018047,2]
[368762370,1751351442211,-1300.61,0.00018047,2]
[368762371,1751351442222,-1300.61,0.00018047,2]
[368762372,1751351442231,-500.0,0.00018047,2]
[368762373,1751351442241,-500.0,0.00018048,2]
[368762374,1751351442251,-413.4388321,0.00018048,2]
[368762375,1751351442260,-597.69170077,0.00018048,2]
[368762376,1751351442270,-460.0,0.00018048,2]
[368762377,1751351442280,-464.00523799,0.00018048,2]
[368762378,1751351442290,-460.0,0.00018048,2]
[368762379,1751351442300,-460.0,0.00018048,2]
[368762380,1751351442310,-460.0,0.00018048,2]
[368762381,1751351442320,-460.0,0.00018048,2]
[368762382,1751351442331,-460.0,0.00018048,2]
[368762383,1751351442340,-460.0,0.00018048,2]
[368762384,1751351442350,-460.0,0.00018048,2]
[368762385,1751351442360,-460.0,0.00018048,2]
[368762386,1751351442491,-460.0,0.00018048,2]
[368762387,1751351442500,-460.0,0.00018048,2]
[368762388,1751351442510,-460.0,0.00018048,2]
[368762389,1751351442519,-460.0,0.00018048,2]
[368762390,1751351442529,-463.17116467,0.00018048,2]
[368762391,1751351442538,-348.51887669,0.00018048,2]
[368762392,1751351442548,-460.0,0.00018048,2]
[368762393,1751351442557,-460.0,0.00018048,2]
[368762394,1751351442567,-460.0,0.00018048,2]